fUST/lending_fUST_20241204
["ID","MTS","AMOUNT","RATE_DAILY","PERIOD"]
[344140007,1733293844498,-500.0,0.00030136,7]
[344140008,1733293844509,-500.0,0.00030136,7]
[344140009,1733293844522,-504.58547558,0.00030136,7]
[344140010,1733293844537,-500.0,0.00030136,7]
[344140011,1733293844549,-500.0,0.00030136,7]
[344140012,1733293844560,-504.62232443,0.00030136,7]
[344140013,1733293844571,-502.21091062,0.00030136,7]
[344140014,1733293844583,-501.33400968,0.00030136,7]
[344140015,1733293844595,-505.53403609,0.00030136,7]
[344140016,1733293844608,-500.0,0.00030136,7]
[344140017,1733293844620,-500.0,0.00030136,7]
[344140018,1733293844632,-500.0,0.00030136,7]
[344140019,1733293844645,-507.07354886,0.00030136,7]
[344140020,1733293844657,-500.0,0.00030136,7]
[344140021,1733293844669,-505.88616946,0.00030136,7]
[344140022,1733293844681,-500.0,0.00030136,7]
[344140023,1733293844694,-500.0,0.00030136,7]
[344140024,1733293844706,-500.0,0.00030136,7]
[344140025,1733293844717,-500.0,0.00030136,7]
[344140026,1733293844729,-500.0,0.00030136,7]
[344140027,1733293844740,-500.0,0.00030136,7]
[344140028,1733293844751,-500.0,0.00030136,7]
[344140029,1733293844763,-500.0,0.00030136,7]
[344140030,1733293844775,-500.0,0.00030136,7]
[344140031,1733293844786,-500.0,0.00030136,7]
[344140032,1733293844798,-500.0,0.00030136,7]
[344140033,1733293844809,-502.53524572,0.00030136,7]
[344140034,1733293844820,-500.0,0.00030136,7]
[344140035,1733293844831,-500.0,0.00030136,7]
[344140036,1733293844842,-500.0,0.00030136,7]
[344140037,1733293844853,-500.0,0.00030136,7]
[344140038,1733293844866,-510.41383853,0.00030136,7]
[344140039,1733293844877,-505.7504333,0.00030136,7]
[344140040,1733293844888,-500.0,0.00030136,7]
[344140041,1733293844900,-500.0,0.00030136,7]
[344140042,1733293844912,-500.0,0.00030136,7]
[344140043,1733293844924,-508.62288131,0.00030136,7]
[344140044,1733293844935,-500.0,0.00030136,7]
[344140045,1733293844947,-500.0,0.00030136,7]
[344140046,1733293844958,-500.0,0.00030136,7]
[344140047,1733293844970,-502.22742736,0.00030136,7]
[344140048,1733293844982,-500.0,0.00030136,7]
[344140049,1733293844992,-500.0,0.00030136,7]
[344140050,1733293845003,-536.34379533,0.00030136,7]
[344140051,1733293845014,-509.49064154,0.00030136,7]
[344140052,1733293845024,-501.31174804,0.00030136,7]
[344140053,1733293845034,-500.0,0.00030136,7]
[344140054,1733293845045,-504.57992307,0.00030136,7]
[344140055,1733293845055,-500.0,0.00030136,7]
[344140056,1733293845065,-500.0,0.00030136,7]
[344140057,1733293845076,-500.0,0.00030136,7]
[344140058,1733293845088,-500.0,0.00030136,7]
[344140059,1733293845099,-500.0,0.00030136,7]
[344140060,1733293845112,-500.0,0.00030136,7]
[344140061,1733293845123,-504.60624044,0.00030136,7]
[344140062,1733293845134,-500.0,0.00030136,7]
[344140063,1733293845145,-627.01501844,0.00030136,7]
[344140064,1733293845155,-500.0,0.00030136,7]
[344140065,1733293845165,-510.49734142,0.00030136,7]
[344140066,1733293845175,-508.93948303,0.00030136,7]
[344140067,1733293845185,-504.48349823,0.00030136,7]
[344140068,1733293845195,-500.0,0.00030136,7]
[344140069,1733293845206,-506.95723704,0.00030136,7]
[344140070,1733293845216,-501.02424321,0.00030136,7]
[344140071,1733293845227,-500.0,0.00030136,7]
[344140072,1733293845239,-500.0,0.00030136,7]
[344140073,1733293845250,-500.0,0.00030136,7]
[344140074,1733293845259,-500.0,0.00030136,7]
[344140075,1733293845268,-500.0,0.00030136,7]
[344140076,1733293845279,-500.0,0.00030136,7]
[344140077,1733293845288,-500.0,0.00030136,7]
[344140078,1733293845299,-500.0,0.00030136,7]
[344140079,1733293845308,-261.70405107,0.00030136,7]
[344140080,1733293845317,-500.0,0.00030136,7]
[344140081,1733293845326,-500.0,0.00030136,7]
[344140082,1733293845336,-500.0,0.00030136,7]
[344140083,1733293845346,-500.0,0.00030136,7]
[344140084,1733293845355,-500.0,0.00030136,7]
[344140085,1733293845366,-507.36567025,0.00030136,7]
[344140086,1733293845376,-500.93442203,0.00030136,7]
[344140087,1733293845387,-500.0,0.00030136,7]
[344140088,1733293845398,-500.0,0.00030136,7]
[344140089,1733293845408,-500.0,0.00030136,7]
[344140090,1733293845420,-500.0,0.00030136,7]
[344140091,1733293845431,-500.0,0.00030136,7]
[344140092,1733293845443,-500.0,0.00030136,7]
[344140093,1733293845454,-500.0,0.00030136,7]
[344140094,1733293845464,-495.0,0.00030136,7]
[344140095,1733293845476,-500.0,0.00030136,7]
[344140096,1733293845487,-500.0,0.00030136,7]
[344140097,1733293845498,-505.18843285,0.00030136,7]
[344140098,1733293845509,-455.71140625,0.00030136,7]
[344140099,1733293845520,-507.76595344,0.00030136,7]
[344140100,1733293845535,-335.57164864,0.00030136,7]
[344140101,1733293845547,-500.0,0.00030136,7]
[344140102,1733293845558,-502.62283126,0.00030136,7]
[344140103,1733293845569,-500.0,0.00030136,7]
[344140104,1733293845580,-500.0,0.00030136,7]
[344140105,1733293845591,-500.0,0.00030136,7]
[344140106,1733293845603,-500.0,0.00030136,7]
[344140107,1733293845613,-500.0,0.00030136,7]
[344140108,1733293845624,-500.0,0.00030136,7]
[344140109,1733293845635,-500.0,0.00030136,7]
[344140110,1733293845645,-500.0,0.00030136,7]
[344140111,1733293845656,-500.0,0.00030136,7]
[344140112,1733293845667,-504.319757,0.00030136,7]
[344140113,1733293845799,-503.68635376,0.00030136,7]
[344140114,1733293845811,-500.0,0.00030136,7]
[344140115,1733293845820,-500.0,0.00030136,7]
[344140116,1733293845830,-534.83282221,0.00030136,7]
[344140117,1733293845839,-500.0,0.00030136,7]
[344140118,1733293845848,-500.0,0.00030136,7]
[344140119,1733293845858,-501.29614116,0.00030136,7]
[344140120,1733293845869,-500.0,0.00030136,7]
[344140121,1733293845878,-500.0,0.00030136,7]
[344140122,1733293845888,-500.0,0.00030136,7]
[344140123,1733293845898,-501.30489051,0.00030136,7]
[344140124,1733293845907,-592.69139795,0.00030136,7]
[344140125,1733293845918,-500.0,0.00030136,7]
[344140126,1733293845928,-502.93257498,0.00030136,7]
[344140127,1733293845938,-500.0,0.00030136,7]
[344140128,1733293845948,-500.0,0.00030136,7]
[344140130,1733293845958,-539.19675338,0.00030136,7]
[344140131,1733293845968,-500.0,0.00030136,7]
[344140133,1733293845977,-500.0,0.00030136,7]
[344140134,1733293845985,-500.0,0.00030136,7]
[344140135,1733293845992,-503.37669574,0.00030136,7]
[344140136,1733293846000,-503.2672656,0.00030136,7]
[344140137,1733293846009,-500.0,0.00030136,7]
[344140138,1733293846017,-507.78583291,0.00030136,7]
[344140139,1733293846025,-500.0,0.00030136,7]
[344140140,1733293846033,-500.0,0.00030136,7]
[344140141,1733293846043,-500.0,0.00030136,7]
[344140142,1733293846051,-500.0,0.00030136,7]
[344140143,1733293846060,-209.5038292,0.00030136,7]
[344140144,1733293846069,-500.0,0.00030136,7]
[344140145,1733293846079,-500.0,0.00030136,7]
[344140146,1733293846088,-500.0,0.00030136,7]
[344140148,1733293846097,-500.0,0.00030136,7]
[344140150,1733293846106,-502.88650339,0.00030136,7]
[344140151,1733293846116,-524.28750305,0.00030136,7]
[344140152,1733293846125,-500.0,0.00030136,7]
[344140153,1733293846134,-500.0,0.00030136,7]
[344140154,1733293846143,-505.77643611,0.00030136,7]
[344140155,1733293846152,-500.0,0.00030136,7]
[344140156,1733293846162,-500.0,0.00030136,7]
[344140157,1733293846171,-500.0,0.00030136,7]
[344140158,1733293846180,-500.0,0.00030136,7]
[344140159,1733293846190,-375.40261539,0.00030136,7]
[344140160,1733293846199,-502.4399849,0.00030136,7]
[344140161,1733293846209,-500.0,0.00030136,7]
[344140162,1733293846218,-500.0,0.00030136,7]
[344140163,1733293846227,-500.0,0.00030136,7]
[344140164,1733293846236,-500.0,0.00030136,7]
[344140165,1733293846245,-500.0,0.00030136,7]
[344140166,1733293846255,-515.28,0.00030136,7]
[344140167,1733293846264,-500.0,0.00030136,7]
[344140168,1733293846274,-500.0,0.00030136,7]
[344140169,1733293846284,-500.0,0.00030136,7]
[344140170,1733293846295,-500.0,0.00030136,7]
[344140171,1733293846305,-500.0,0.00030136,7]
[344140172,1733293846314,-500.0,0.00030136,7]
[344140173,1733293846325,-311.73425235,0.00030136,7]
[344140174,1733293846335,-500.0,0.00030136,7]
[344140175,1733293846345,-500.0,0.00030136,7]
[344140176,1733293846355,-508.44680898,0.00030136,7]
[344140177,1733293846364,-500.0,0.00030136,7]
[344140178,1733293846374,-500.0,0.00030136,7]
[344140179,1733293846384,-500.0,0.00030136,7]
[344140180,1733293846393,-500.0,0.00030136,7]
[344140181,1733293846403,-500.0,0.00030136,7]
[344140182,1733293846412,-500.0,0.00030136,7]
[344140183,1733293846422,-500.0,0.00030136,7]
[344140184,1733293846432,-509.13845205,0.00030136,7]
[344140185,1733293846441,-500.0,0.00030136,7]
[344140186,1733293846451,-507.3553323,0.00030136,7]
[344140187,1733293846460,-500.0,0.00030136,7]
[344140188,1733293846470,-500.0,0.00030136,7]
[344140189,1733293846479,-500.0,0.00030136,7]
[344140190,1733293846489,-445.51856976,0.00030136,7]
[344140192,1733293846498,-500.0,0.00030136,7]
[344140193,1733293846508,-500.0,0.00030136,7]
[344140194,1733293846519,-500.0,0.00030136,7]
[344140195,1733293846530,-500.0,0.00030136,7]
[344140196,1733293846543,-500.0,0.00030136,7]
[344140197,1733293846553,-500.0,0.00030136,7]
[344140198,1733293846563,-500.0,0.00030136,7]
[344140199,1733293846573,-514.70031751,0.00030136,2]
[344140200,1733293846582,-500.0,0.00030136,7]
[344140201,1733293846593,-500.0,0.00030136,7]
[344140202,1733293846604,-505.35857486,0.00030136,7]
[344140203,1733293846616,-501.2116679,0.00030136,7]
[344140204,1733293846626,-500.0,0.00030136,7]
[344140205,1733293846637,-500.0,0.00030136,7]
[344140206,1733293846646,-536.31882397,0.00030136,7]
[344140207,1733293846656,-500.0,0.00030136,7]
[344140208,1733293846666,-500.0,0.00030136,7]
[344140209,1733293846674,-151.0,0.00030136,7]
[344140210,1733293846682,-511.5648463,0.00030136,7]
[344140211,1733293846690,-500.0,0.00030136,7]
[344140212,1733293846698,-500.0,0.00030136,7]
[344140213,1733293846707,-502.60290509,0.00030136,7]
[344140215,1733293846714,-502.58065145,0.00030136,7]
[344140216,1733293846723,-151.0,0.00030136,7]
[344140217,1733293846731,-500.0,0.00030136,7]
[344140218,1733293846738,-500.0,0.00030136,7]
[344140219,1733293846747,-505.87920911,0.00030136,7]
[344140220,1733293846755,-500.0,0.00030136,7]
[344140221,1733293846763,-504.84587531,0.00030136,7]
[344140222,1733293846773,-517.8591683,0.00030136,7]
[344140223,1733293846782,-506.22186973,0.00030136,7]
[344140224,1733293846791,-151.0,0.00030136,7]
[344140225,1733293846802,-151.0,0.00030136,7]
[344140226,1733293846811,-151.0,0.00030136,7]
[344140227,1733293846820,-506.06529868,0.00030136,7]
[344140228,1733293846830,-151.0,0.00030136,7]
[344140229,1733293846839,-608.81963938,0.00030136,7]
[344140230,1733293846848,-502.57173477,0.00030136,7]
[344140231,1733293846858,-500.0,0.00030136,7]
[344140232,1733293846867,-504.13595623,0.00030136,7]
[344140233,1733293846876,-500.0,0.00030136,7]
[344140234,1733293846886,-500.0,0.00030136,7]
[344140235,1733293846895,-500.0,0.00030136,7]
[344140236,1733293846904,-500.0,0.00030136,7]
[344140237,1733293846914,-500.0,0.00030136,7]
[344140238,1733293846923,-501.68399566,0.00030136,7]
[344140239,1733293846932,-151.0,0.00030136,7]
[344140240,1733293846941,-266.980688,0.00030136,7]
[344140241,1733293846950,-266.980688,0.00030136,7]
[344140242,1733293846959,-151.0,0.00030136,7]
[344140243,1733293846968,-151.0,0.00030136,7]
[344140244,1733293846977,-151.0,0.00030136,7]
[344140245,1733293846986,-501.02918497,0.00030136,7]
[344140246,1733293846996,-151.0,0.00030136,7]
[344140247,1733293847005,-151.0,0.00030136,7]
[344140248,1733293847014,-151.0,0.00030136,7]
[344140249,1733293847024,-151.0,0.00030136,7]
[344140250,1733293847033,-500.0,0.00030136,7]
[344140251,1733293847043,-297.66860154,0.00030136,7]
[344140252,1733293847053,-385.075496,0.00030136,7]
[344140253,1733293847062,-385.075496,0.00030136,7]
[344140254,1733293847072,-151.0,0.00030136,7]
[344140255,1733293847081,-151.0,0.00030136,7]
[344140256,1733293847091,-501.65205262,0.00030136,7]
[344140257,1733293847100,-500.0,0.00030136,7]
[344140258,1733293847109,-536.72635521,0.00030136,7]
[344140259,1733293847119,-200.0,0.00030136,7]
[344140260,1733293847128,-200.0,0.00030136,7]
[344140261,1733293847137,-247.50221091,0.00030159,2]
[344140262,1733293847147,-500.0,0.00030172,7]
[344140263,1733293847156,-6057.23556538,0.00030172,2]
[344140264,1733293847166,-154.78447787,0.00030173,5]
[344140265,1733293847175,-500.64373864,0.00030173,5]
[344140266,1733293847185,-298.2481422,0.00030173,5]
[344140267,1733293847195,-502.5813538,0.00030173,5]
[344140268,1733293847204,-608.1672288,0.00030173,5]
[344140269,1733293847214,-502.28386751,0.00030173,5]
[344140270,1733293847223,-611.9217465,0.00030173,5]
[344140271,1733293847233,-500.0,0.00030173,2]
[344140272,1733293847242,-153.90475121,0.00030173,5]
[344140273,1733293847251,-500.0,0.00030173,5]
[344140274,1733293847260,-202.54698557,0.00030173,5]
[344140275,1733293847269,-500.0,0.00030173,5]
[344140276,1733293847278,-500.0,0.00030173,5]
[344140277,1733293847288,-501.69869495,0.00030173,5]
[344140278,1733293847299,-163.60006413,0.00030173,5]
[344140279,1733293847308,-160.09827075,0.00030173,5]
[344140280,1733293847318,-261.86609999,0.00030173,5]
[344140281,1733293847327,-151.0,0.00030173,7]
[344140282,1733293847336,-151.0,0.00030173,7]
[344140283,1733293847345,-151.0,0.00030173,7]
[344140284,1733293847354,-151.0,0.00030173,7]
[344140285,1733293847364,-151.0,0.00030173,7]
[344140286,1733293847374,-151.0,0.00030194,7]
[344140287,1733293847384,-151.0,0.00030194,7]
[344140288,1733293847393,-151.0,0.00030194,7]
[344140289,1733293847402,-151.0,0.00030194,7]
[344140290,1733293847411,-299.8,0.000302,2]
[344140291,1733293847421,-247.50221091,0.00030281,2]
[344140292,1733293847430,-497.947434,0.00030318,2]
[344140293,1733293847440,-160.018975,0.00030318,2]
[344140294,1733293847450,-178.346839,0.00030318,2]
[344140295,1733293847460,-500.0,0.00030336,7]
[344140296,1733293847469,-500.0,0.00030336,7]
[344140297,1733293847478,-154.141837,0.00030337,7]
[344140298,1733293847488,-161.478585,0.00030337,7]
[344140299,1733293847497,-151.0,0.00030337,7]
[344140300,1733293847507,-150.0,0.00030337,2]
[344140301,1733293847516,-2376.0,0.00030337,2]
[344140302,1733293847530,-2172.0,0.00030337,2]
[344140303,1733293847540,-795.683,0.00030337,2]
[344140304,1733293847551,-150.0,0.00030337,2]
[344140305,1733293847560,-1029.89,0.00030347,7]
[344140306,1733293847571,-500.0,0.00030347,7]
[344140307,1733293847581,-500.0,0.00030347,7]
[344140308,1733293847591,-8000.0,0.000304,2]
[344140309,1733293847601,-151.0,0.000304,7]
[344140310,1733293847611,-151.0,0.000304,7]
[344140311,1733293847621,-266.980688,0.000304,7]
[344140312,1733293847631,-266.980688,0.000304,7]
[344140313,1733293847640,-151.0,0.000304,7]
[344140314,1733293847649,-151.0,0.000304,7]
[344140315,1733293847659,-385.075496,0.000304,7]
[344140316,1733293847668,-385.075496,0.000304,7]
[344140317,1733293847677,-155.834511,0.000304,7]
[344140318,1733293847686,-247.50221091,0.00030404,2]
[344140319,1733293847696,-207.0,0.00030411,2]
[344140320,1733293847706,-7065.07392582,0.00030454,2]
[344140321,1733293847715,-151.0,0.00030471,7]
[344140322,1733293847724,-500.0,0.00030485,7]
[344140323,1733293847734,-304.98,0.00030499,7]
[344140324,1733293847743,-500.0,0.00030499,7]
[344140325,1733293847752,-500.0,0.00030499,7]
[344140326,1733293847762,-503.18691399,0.00030499,7]
[344140327,1733293847771,-20000.0,0.000305,14]
[344140328,1733293847780,-151.0,0.000305,7]
[344140329,1733293847789,-151.0,0.000305,7]
[344140330,1733293847799,-151.0,0.000305,7]
[344140331,1733293847808,-151.0,0.000305,7]
[344140332,1733293847818,-184.598711,0.000305,7]
[344140333,1733293847827,-184.598711,0.000305,7]
[344140334,1733293847837,-542.932614,0.000305,7]
[344140335,1733293847846,-542.932614,0.000305,7]
[344140336,1733293847856,-151.0,0.000305,7]
[344140337,1733293847865,-151.0,0.000305,7]
[344140338,1733293847875,-151.0,0.000305,7]
[344140339,1733293847884,-151.0,0.000305,7]
[344140340,1733293847893,-151.0,0.000305,7]
[344140341,1733293847903,-151.0,0.000305,7]
[344140342,1733293847912,-151.0,0.000305,7]
[344140343,1733293847922,-500.0,0.00030503,7]
[344140344,1733293847931,-625.0,0.00030503,7]
[344140345,1733293847940,-500.0,0.00030503,7]
[344140346,1733293847949,-500.0,0.00030503,7]
[344140347,1733293847959,-151.0,0.00030503,7]
[344140348,1733293847969,-151.0,0.00030503,7]
[344140349,1733293847978,-247.50221091,0.00030527,2]
[344140350,1733293847987,-152.50136542,0.00030531,7]
[344140351,1733293847997,-151.0,0.0003057,7]
[344140352,1733293848006,-151.0,0.0003057,7]
[344140353,1733293848015,-266.980688,0.0003057,7]
[344140354,1733293848025,-266.980688,0.0003057,7]
[344140355,1733293848035,-385.075496,0.0003057,7]
[344140356,1733293848046,-385.075496,0.0003057,7]
[344140357,1733293848056,-217.15,0.00030634,7]
[344140358,1733293848066,-151.0,0.00030636,7]
[344140359,1733293848075,-151.0,0.00030636,7]
[344140360,1733293848084,-151.0,0.00030636,7]
[344140361,1733293848094,-500.0,0.00030646,7]
[344140362,1733293848103,-247.50221091,0.00030649,2]
[344140363,1733293848112,-420.0,0.00030658,2]
[344140364,1733293848122,-497.947434,0.00030684,2]
[344140365,1733293848131,-172.19257,0.00030684,2]
[344140366,1733293848141,-160.018975,0.00030684,2]
[344140367,1733293848151,-178.346839,0.00030684,2]
[344140368,1733293848160,-157.109996,0.00030684,7]
[344140369,1733293848169,-158.989085,0.00030684,7]
[344140370,1733293848179,-500.0,0.00030699,7]
[344140371,1733293848189,-3686.95229097,0.000307,30]
[344140372,1733293848198,-151.0,0.00030713,7]
[344140373,1733293848209,-646.97460245,0.00030721,2]
[344140374,1733293848219,-1000.0,0.00030721,5]
[344140375,1733293848228,-768.00462889,0.00030721,5]
[344140376,1733293848237,-151.0,0.00030721,7]
[344140377,1733293848246,-151.0,0.00030721,7]
[344140378,1733293848256,-247.50221091,0.00030772,2]
[344140379,1733293848265,-500.0,0.00030823,7]
[344140380,1733293848275,-500.0,0.00030823,7]
[344140381,1733293848284,-500.0,0.00030823,7]
[344140382,1733293848295,-500.0,0.00030823,7]
[344140383,1733293848308,-500.0,0.00030823,7]
[344140384,1733293848317,-500.0,0.00030823,7]
[344140385,1733293848326,-151.0,0.00030829,7]
[344140386,1733293848335,-500.0,0.00030869,7]
[344140387,1733293848345,-500.0,0.00030869,7]
[344140388,1733293848355,-500.0,0.00030869,7]
[344140389,1733293848364,-500.0,0.00030869,7]
[344140390,1733293848374,-500.0,0.00030869,7]
[344140391,1733293848383,-527.22,0.00030869,7]
[344140392,1733293848392,-500.0,0.00030869,7]
[344140393,1733293848401,-500.0,0.00030869,7]
[344140394,1733293848411,-500.0,0.00030869,7]
[344140395,1733293848420,-500.0,0.00030869,7]
[344140396,1733293848430,-1029.89,0.0003087,7]
[344140397,1733293848439,-500.0,0.0003087,7]
[344140398,1733293848448,-112.91299274,0.00030872,4]
[344140399,1733293848525,-74.99942406,0.00030872,4]
[344140400,1733293848537,-247.50221091,0.00030895,2]
[344140401,1733293848548,-1249.16,0.00030899,7]
[344140402,1733293848558,-500.0,0.00030974,7]
[344140403,1733293848568,-159.894083,0.00030992,7]
[344140404,1733293848673,-151.0,0.00030992,7]
[344140405,1733293848684,-263.59587,0.00030992,7]
[344140406,1733293848694,-151.0,0.00030992,7]
[344140407,1733293848704,-151.0,0.00030992,7]
[344140408,1733293848714,-6666.0,0.00030992,2]
[344140409,1733293848724,-1249.16,0.00030999,7]
[344140410,1733293848734,-414.68189332,0.00030999,7]
[344140411,1733293848743,-1029.89,0.00030999,7]
[344140412,1733293848753,-500.0,0.00030999,7]
[344140413,1733293848763,-151.0,0.00030999,7]
[344140414,1733293848773,-500.0,0.00030999,7]
[344140415,1733293848782,-151.0,0.00030999,7]
[344140416,1733293848792,-151.0,0.00030999,7]
[344140417,1733293848805,-151.0,0.00030999,7]
[344140418,1733293848815,-266.980688,0.00030999,7]
[344140419,1733293848825,-266.980688,0.00030999,7]
[344140420,1733293848835,-151.0,0.00030999,7]
[344140421,1733293848846,-385.075496,0.00030999,7]
[344140422,1733293848857,-385.075496,0.00030999,7]
[344140423,1733293848866,-7652.66166029,0.00031,7]
[344140424,1733293848879,-3837.6209901,0.00031,7]
[344140425,1733293848890,-10000.0,0.00031,7]
[344140426,1733293848900,-151.0,0.00031,7]
[344140427,1733293848910,-151.0,0.00031,7]
[344140428,1733293848920,-151.0,0.00031,7]
[344140429,1733293848930,-151.0,0.00031,7]
[344140430,1733293848939,-264.518844,0.00031,7]
[344140431,1733293848949,-151.0,0.00031,7]
[344140432,1733293848959,-151.0,0.00031,7]
[344140433,1733293848969,-184.598711,0.00031,7]
[344140434,1733293848978,-184.598711,0.00031,7]
[344140435,1733293848988,-542.932614,0.00031,7]
[344140436,1733293848998,-542.932614,0.00031,7]
[344140437,1733293849007,-9622.34395503,0.00031,60]
[344140438,1733293849017,-151.0,0.00031,7]
[344140439,1733293849028,-151.0,0.00031,7]
[344140440,1733293849038,-247.50221091,0.00031017,2]
[344140441,1733293849049,-386.18,0.0003109,3]
[344140442,1733293849059,-666.0,0.00031092,2]
[344140443,1733293849069,-500.0,0.00031098,7]
[344140444,1733293849079,-500.0,0.00031098,7]
[344140445,1733293849089,-500.0,0.00031098,7]
[344140446,1733293849099,-500.0,0.00031098,7]
[344140447,1733293849108,-1249.16,0.00031099,7]
[344140448,1733293849118,-151.0,0.00031099,7]
[344140449,1733293849127,-182.285232,0.00031099,7]
[344140450,1733293849137,-151.0,0.00031099,7]
[344140451,1733293849146,-151.0,0.00031099,7]
[344140452,1733293849156,-2000.0,0.000311,5]
[344140453,1733293849166,-500.0,0.000311,7]
[344140454,1733293849175,-151.0,0.00031101,7]
[344140455,1733293849185,-1029.89,0.00031114,7]
[344140456,1733293849195,-500.0,0.00031114,7]
[344140457,1733293849204,-500.0,0.00031137,7]
[344140458,1733293849214,-151.0,0.0003114,7]
[344140459,1733293849224,-151.0,0.0003114,7]
[344140460,1733293849234,-151.0,0.0003114,7]
[344140461,1733293849244,-266.980688,0.0003114,7]
[344140462,1733293849253,-266.980688,0.0003114,7]
[344140463,1733293849262,-151.0,0.0003114,7]
[344140464,1733293849272,-151.0,0.0003114,7]
[344140465,1733293849282,-1422.75876788,0.0003114,2]
[344140466,1733293849292,-385.075496,0.0003114,7]
[344140467,1733293849303,-385.075496,0.0003114,7]
[344140468,1733293849313,-247.50221091,0.0003114,2]
[344140469,1733293849323,-151.0,0.00031172,7]
[344140470,1733293849336,-151.0,0.00031172,7]
[344140471,1733293849346,-151.0,0.00031172,7]
[344140472,1733293849356,-184.598711,0.00031172,7]
[344140473,1733293849366,-184.598711,0.00031172,7]
[344140474,1733293849376,-542.932614,0.00031172,7]
[344140475,1733293849385,-542.932614,0.00031172,7]
[344140476,1733293849395,-500.0,0.00031173,5]
[344140477,1733293849404,-502.4794918,0.00031173,5]
[344140478,1733293849414,-367.19024637,0.00031173,5]
[344140479,1733293849424,-500.0,0.00031173,5]
[344140480,1733293849434,-282.96156645,0.00031173,2]
[344140481,1733293849443,-500.0,0.00031173,5]
[344140482,1733293849453,-156.333236,0.00031173,7]
[344140483,1733293849463,-474.96,0.00031182,7]
[344140484,1733293849473,-500.0,0.00031182,7]
[344140485,1733293849482,-2955.57147762,0.00031183,2]
[344140486,1733293849492,-150.01,0.00031183,2]
[344140487,1733293849501,-1249.16,0.00031184,7]
[344140488,1733293849511,-151.0,0.00031184,7]
[344140489,1733293849521,-151.0,0.00031184,7]
[344140490,1733293849536,-151.0,0.00031184,7]
[344140491,1733293849546,-1249.16,0.00031185,7]
[344140492,1733293849556,-151.0,0.00031187,7]
[344140493,1733293849566,-1249.16,0.00031192,7]
[344140494,1733293849578,-1249.16,0.00031192,7]
[344140495,1733293849587,-1249.16,0.00031192,7]
[344140496,1733293849597,-1249.16,0.00031192,7]
[344140497,1733293849607,-1249.28357831,0.00031192,7]
[344140498,1733293849617,-151.0,0.00031192,7]
[344140499,1733293849627,-151.0,0.00031192,7]
[344140500,1733293849637,-151.0,0.00031192,7]
[344140501,1733293849647,-500.0,0.00031197,7]
[344140502,1733293849657,-1029.89,0.00031198,7]
[344140503,1733293849666,-500.0,0.00031198,7]
[344140504,1733293849676,-619.14777299,0.00031198,7]
[344140505,1733293849686,-1029.89,0.00031199,7]
[344140506,1733293849696,-500.0,0.00031199,7]
[344140507,1733293849706,-214.226606,0.00031199,7]
[344140508,1733293849715,-151.0,0.00031199,7]
[344140509,1733293849725,-500.0,0.00031199,7]
[344140510,1733293849735,-500.0,0.000312,7]
[344140511,1733293849744,-500.0,0.000312,7]
[344140512,1733293849754,-500.0,0.000312,7]